Workbook

Sheet Cuota Nivelada
I1: paguilar | K1: =NOW() -> 2019-02-01T08:14:21.650
E2: **El Costo Anual Total(CAT) es para fines informativos y comparativos.
B3: PLAN DE PAGOS | G3: COOPERATIVA DE AHORRO Y CREDITO OCOTEPEQUE LTDA | N3: si | O3: Aplica Domingos
A5: Nombre: | I5: Código de afiliado: | N5: Dias 360 | O5: Calculo de Dias
A7: Especificaciones del prestamo | I7: Resumen del préstamo | N7: Plazo (En Años) | O7: Plazo del préstamo
A8: Importe del préstamo | E8: 150000 | G8: Clase de Interes | H8: Vencidos | J8: Capital efectivo | K8: =Importe_del_préstamo-K10-K11 -> 146570 | L8: Plazo (En Años)
A9: Tasa de interés anual | E9: 0.25 | G9: Liqudacion Mensual | H9: Mes Comercial | J9: Número de pagos programado | K9: =IF($A$10=$L$9,Años_préstamo,IF(Valores_especificados,Años_préstamo*Núm_pagos_al_año,"")) -> 3 | L9: Plazo (En Meses)
A10: =+N7 -> Plazo (En Años) | E10: 1 | G10: Frecuencia de Capital | H10: Mensual | J10: Comisión de desembolso (CD) | K10: =+Importe_del_préstamo*E12 -> 3000 | L10: =+Núm_pagos_al_año -> 3
A11: Número de pagos | E11: 3 | G11: Frecuencia de Interes | H11: Mensual | J11: Comisión de gestión (CG) | K11: =+E13 -> 430 | L11: si
A12: Comisión de desembolso (CD) | E12: 0.02 | G12: Amortizacion | H12: Cuotas Fijas de Capital | J12: Interés total | K12: =IF(Valores_especificados,SUMIF(Saldo_inicial,">0",Int),"") -> 25666.3113 | L12: no
A13: Comisión de gestión (CG) | E13: =+'Comision de Gestion'!C10 -> 430 | G13: Fecha inicial del préstamo | H13: 2018-05-28 | J13: Costo total mensual del crédito | K13: =IF(Valores_especificados,IRR((OFFSET(F19,,1,(1+K9))),Tasa_de_interés),"") -> 0.09630966092 | L13: Dias Calendario
A14: Pago programado | E14: =IF(Valores_especificados,(IF($A$10=$L$9,-PMT(Tasa_de_interés/12,Años_préstamo,Importe_del_préstamo),-PMT(Tasa_de_interés/Núm_pagos_al_año,Años_préstamo*Núm_pagos_al_año,Importe_del_préstamo))),"") -> 58555.4371 | G14: Fecha Final del préstamo | H14: =IF(Valores_especificados,LOOKUP(K9,A20:A499,B20:B499),"") -> 2019-05-28 | J14: T.A.E. (CAT) real | K14: =IF(Valores_especificados,((1+(K13))^(L10))-1,"") -> 0.3176489603 | L14: Dias 360
F15: Pagos adicionales opcionales
A18: Nº Pago | B18: Fecha de pago | E18: Dias | F18: Saldo inicial | G18: Pago programado | H18: Abono Capital | I18: Interés | J18: Saldo final | K18: Interés acumulativo
G19: =-K8 -> -146570
A20: =IF(Valores_especificados,1,"") -> 1 | B20: =IF(AND(D20<>"",$N$3=$L$12),C20+D20,C20) -> 2018-09-28 | C20: =IF($A$10=$L$9,IF(Núm_de_pago<>"",DATE(YEAR(Inicio_prestamo),MONTH(Inicio_prestamo)+(Núm_de_pago),DAY(Inicio_prestamo)),""),IF(Núm_de_pago<>"",DATE(YEAR(Inicio_prestamo),MONTH(Inicio_prestamo)+(Núm_de_pago)*12/Núm_pagos_al_año,DAY(Inicio_prestamo)),"")) -> 2018-09-28 | D20: =IF(Núm_de_pago<>"",IF(WEEKDAY(C20)=1,1,""),"") ->  | E20: =IF($N$5=$L$14,DAYS360(Inicio_prestamo,B20,TRUE),_xlfn.DAYS(B20,Inicio_prestamo)) -> 120 | F20: =IF(Valores_especificados,Importe_del_préstamo,"") -> 150000 | G20: =IF(Núm_de_pago<>"",Pago_mensual_programado,"") -> 58555.4371 | H20: =ROUND(IF(Núm_de_pago<>"",Pago_progr-Int,""),6) -> 46055.4371 | I20: =ROUND(IF(Núm_de_pago<>"",Saldo_inicial*(Tasa_de_interés/$L$10),""),6) -> 12500 | J20: =IF(Núm_de_pago<>"",ROUND(Saldo_inicial-Capital,6),IF(Núm_de_pago<>"",0,"")) -> 103944.5629 | K20: =SUM($I$20:$I20) -> 12500
A21: =IF(J20=0,"",IF(J20="","",IF(Valores_especificados,A20+1,""))) -> 2 | B21: 2019-01-28 | C21: 2019-01-28 | E21: =IF(A21="","",IF($N$5=$L$14,DAYS360(B20,B21,TRUE),_xlfn.DAYS(B21,B20))) -> 120 | F21: =IF(Núm_de_pago<>"",ROUND(J20,6),"") -> 103944.5629 | G21: 58555.4371 | H21: =IF(A21="","",ROUND(IF(Núm_de_pago<>"",Pago_progr-Int,""),6)) -> 49893.39019 | I21: =IF(A21="","",ROUND(IF(Núm_de_pago<>"",Saldo_inicial*(Tasa_de_interés/$L$10),""),6)) -> 8662.046908 | J21: 54051.17271 | K21: =IF(A21="","",SUM(OFFSET($H$20,,1,1+A20))) -> 21162.04691
A22: =IF(J21=0,"",IF(J21="","",IF(Valores_especificados,A21+1,""))) -> 3 | B22: 2019-05-28 | C22: 2019-05-28 | E22: =IF(A22="","",IF($N$5=$L$14,DAYS360(B21,B22,TRUE),_xlfn.DAYS(B22,B21))) -> 120 | F22: 54051.17271 | G22: 58555.4371 | H22: 54051.17271 | I22: 4504.264392 | J22: 0 | K22: =IF(A22="","",SUM(OFFSET($H$20,,1,1+A21))) -> 25666.3113
A23: =IF(J22=0,"",IF(J22="","",IF(Valores_especificados,A22+1,""))) -> 
A24: =IF(J23=0,"",IF(J23="","",IF(Valores_especificados,A23+1,""))) -> 
A25: =IF(J24=0,"",IF(J24="","",IF(Valores_especificados,A24+1,""))) -> 
A26: =IF(J25=0,"",IF(J25="","",IF(Valores_especificados,A25+1,""))) -> 
A27: =IF(J26=0,"",IF(J26="","",IF(Valores_especificados,A26+1,""))) -> 
A28: =IF(J27=0,"",IF(J27="","",IF(Valores_especificados,A27+1,""))) -> 
A29: =IF(J28=0,"",IF(J28="","",IF(Valores_especificados,A28+1,""))) -> 
A30: =IF(J29=0,"",IF(J29="","",IF(Valores_especificados,A29+1,""))) -> 
A31: =IF(J30=0,"",IF(J30="","",IF(Valores_especificados,A30+1,""))) -> 
A32: =IF(J31=0,"",IF(J31="","",IF(Valores_especificados,A31+1,""))) -> 
A33: =IF(J32=0,"",IF(J32="","",IF(Valores_especificados,A32+1,""))) -> 
A34: =IF(J33=0,"",IF(J33="","",IF(Valores_especificados,A33+1,""))) -> 
A35: =IF(J34=0,"",IF(J34="","",IF(Valores_especificados,A34+1,""))) -> 
A36: =IF(J35=0,"",IF(J35="","",IF(Valores_especificados,A35+1,""))) -> 
A37: =IF(J36=0,"",IF(J36="","",IF(Valores_especificados,A36+1,""))) -> 
A38: =IF(J37=0,"",IF(J37="","",IF(Valores_especificados,A37+1,""))) -> 
A39: =IF(J38=0,"",IF(J38="","",IF(Valores_especificados,A38+1,""))) -> 
A40: =IF(J39=0,"",IF(J39="","",IF(Valores_especificados,A39+1,""))) -> 
A41: =IF(J40=0,"",IF(J40="","",IF(Valores_especificados,A40+1,""))) -> 
A42: =IF(J41=0,"",IF(J41="","",IF(Valores_especificados,A41+1,""))) -> 
A43: =IF(J42=0,"",IF(J42="","",IF(Valores_especificados,A42+1,""))) -> 
A44: =IF(J43=0,"",IF(J43="","",IF(Valores_especificados,A43+1,""))) -> 
A45: =IF(J44=0,"",IF(J44="","",IF(Valores_especificados,A44+1,""))) -> 
A46: =IF(J45=0,"",IF(J45="","",IF(Valores_especificados,A45+1,""))) -> 
A47: =IF(J46=0,"",IF(J46="","",IF(Valores_especificados,A46+1,""))) -> 
A48: =IF(J47=0,"",IF(J47="","",IF(Valores_especificados,A47+1,""))) -> 
A49: =IF(J48=0,"",IF(J48="","",IF(Valores_especificados,A48+1,""))) -> 
A50: =IF(J49=0,"",IF(J49="","",IF(Valores_especificados,A49+1,""))) -> 
A51: =IF(J50=0,"",IF(J50="","",IF(Valores_especificados,A50+1,""))) -> 
A52: =IF(J51=0,"",IF(J51="","",IF(Valores_especificados,A51+1,""))) -> 
A53: =IF(J52=0,"",IF(J52="","",IF(Valores_especificados,A52+1,""))) -> 
A54: =IF(J53=0,"",IF(J53="","",IF(Valores_especificados,A53+1,""))) -> 
A55: =IF(J54=0,"",IF(J54="","",IF(Valores_especificados,A54+1,""))) -> 
A56: =IF(J55=0,"",IF(J55="","",IF(Valores_especificados,A55+1,""))) -> 
A57: =IF(J56=0,"",IF(J56="","",IF(Valores_especificados,A56+1,""))) -> 
A58: =IF(J57=0,"",IF(J57="","",IF(Valores_especificados,A57+1,""))) -> 
A59: =IF(J58=0,"",IF(J58="","",IF(Valores_especificados,A58+1,""))) -> 
A60: =IF(J59=0,"",IF(J59="","",IF(Valores_especificados,A59+1,""))) -> 
A61: =IF(J60=0,"",IF(J60="","",IF(Valores_especificados,A60+1,""))) -> 
A62: =IF(J61=0,"",IF(J61="","",IF(Valores_especificados,A61+1,""))) -> 
A63: =IF(J62=0,"",IF(J62="","",IF(Valores_especificados,A62+1,""))) -> 
A64: =IF(J63=0,"",IF(J63="","",IF(Valores_especificados,A63+1,""))) -> 
A65: =IF(J64=0,"",IF(J64="","",IF(Valores_especificados,A64+1,""))) -> 
A66: =IF(J65=0,"",IF(J65="","",IF(Valores_especificados,A65+1,""))) -> 
A67: =IF(J66=0,"",IF(J66="","",IF(Valores_especificados,A66+1,""))) -> 
A68: =IF(J67=0,"",IF(J67="","",IF(Valores_especificados,A67+1,""))) -> 
A69: =IF(J68=0,"",IF(J68="","",IF(Valores_especificados,A68+1,""))) -> 
A70: =IF(J69=0,"",IF(J69="","",IF(Valores_especificados,A69+1,""))) -> 
A71: =IF(J70=0,"",IF(J70="","",IF(Valores_especificados,A70+1,""))) -> 
A72: =IF(J71=0,"",IF(J71="","",IF(Valores_especificados,A71+1,""))) -> 
A73: =IF(J72=0,"",IF(J72="","",IF(Valores_especificados,A72+1,""))) -> 
A74: =IF(J73=0,"",IF(J73="","",IF(Valores_especificados,A73+1,""))) -> 
A75: =IF(J74=0,"",IF(J74="","",IF(Valores_especificados,A74+1,""))) -> 
A76: =IF(J75=0,"",IF(J75="","",IF(Valores_especificados,A75+1,""))) -> 
A77: =IF(J76=0,"",IF(J76="","",IF(Valores_especificados,A76+1,""))) -> 
A78: =IF(J77=0,"",IF(J77="","",IF(Valores_especificados,A77+1,""))) -> 
A79: =IF(J78=0,"",IF(J78="","",IF(Valores_especificados,A78+1,""))) -> 
A80: =IF(J79=0,"",IF(J79="","",IF(Valores_especificados,A79+1,""))) -> 
A81: =IF(J80=0,"",IF(J80="","",IF(Valores_especificados,A80+1,""))) -> 
A82: =IF(J81=0,"",IF(J81="","",IF(Valores_especificados,A81+1,""))) -> 
A83: =IF(J82=0,"",IF(J82="","",IF(Valores_especificados,A82+1,""))) -> 
A84: =IF(J83=0,"",IF(J83="","",IF(Valores_especificados,A83+1,""))) ->  | B84: =IF(AND(D84<>"",$N$3=$L$12),C84+D84,C84) ->  | C84: =IF($A$10=$L$9,IF(Núm_de_pago<>"",DATE(YEAR(Inicio_prestamo),MONTH(Inicio_prestamo)+(Núm_de_pago),DAY(Inicio_prestamo)),""),IF(Núm_de_pago<>"",DATE(YEAR(Inicio_prestamo),MONTH(Inicio_prestamo)+(Núm_de_pago)*12/Núm_pagos_al_año,DAY(Inicio_prestamo)),"")) ->  | D84: =IF(Núm_de_pago<>"",IF(WEEKDAY(C84)=1,1,""),"") ->  | G84: =IF(Núm_de_pago<>"",Pago_mensual_programado,"") ->  | J84: =IF(Núm_de_pago<>"",ROUND(Saldo_inicial-Capital,6),IF(Núm_de_pago<>"",0,"")) -> 
A85: =IF(J84=0,"",IF(J84="","",IF(Valores_especificados,A84+1,""))) ->  | F85: =IF(Núm_de_pago<>"",ROUND(J84,6),"") ->  | H85: =IF(A85="","",ROUND(IF(Núm_de_pago<>"",Pago_progr-Int,""),6)) ->  | I85: =IF(A85="","",ROUND(IF(Núm_de_pago<>"",Saldo_inicial*(Tasa_de_interés/$L$10),""),6)) -> 
A86: =IF(J85=0,"",IF(J85="","",IF(Valores_especificados,A85+1,""))) ->  | E86: =IF(A86="","",IF($N$5=$L$14,DAYS360(B85,B86,TRUE),_xlfn.DAYS(B86,B85))) ->  | K86: =IF(A86="","",SUM(OFFSET($H$20,,1,1+A85))) -> 
A87: =IF(J86=0,"",IF(J86="","",IF(Valores_especificados,A86+1,""))) -> 
A88: =IF(J87=0,"",IF(J87="","",IF(Valores_especificados,A87+1,""))) -> 
A89: =IF(J88=0,"",IF(J88="","",IF(Valores_especificados,A88+1,""))) -> 
A90: =IF(J89=0,"",IF(J89="","",IF(Valores_especificados,A89+1,""))) -> 
A91: =IF(J90=0,"",IF(J90="","",IF(Valores_especificados,A90+1,""))) -> 
A92: =IF(J91=0,"",IF(J91="","",IF(Valores_especificados,A91+1,""))) -> 
A93: =IF(J92=0,"",IF(J92="","",IF(Valores_especificados,A92+1,""))) -> 
A94: =IF(J93=0,"",IF(J93="","",IF(Valores_especificados,A93+1,""))) -> 
A95: =IF(J94=0,"",IF(J94="","",IF(Valores_especificados,A94+1,""))) -> 
A96: =IF(J95=0,"",IF(J95="","",IF(Valores_especificados,A95+1,""))) -> 
A97: =IF(J96=0,"",IF(J96="","",IF(Valores_especificados,A96+1,""))) -> 
A98: =IF(J97=0,"",IF(J97="","",IF(Valores_especificados,A97+1,""))) -> 
A99: =IF(J98=0,"",IF(J98="","",IF(Valores_especificados,A98+1,""))) -> 
A100: =IF(J99=0,"",IF(J99="","",IF(Valores_especificados,A99+1,""))) -> 
A101: =IF(J100=0,"",IF(J100="","",IF(Valores_especificados,A100+1,""))) -> 
A102: =IF(J101=0,"",IF(J101="","",IF(Valores_especificados,A101+1,""))) -> 
A103: =IF(J102=0,"",IF(J102="","",IF(Valores_especificados,A102+1,""))) -> 
A104: =IF(J103=0,"",IF(J103="","",IF(Valores_especificados,A103+1,""))) -> 
A105: =IF(J104=0,"",IF(J104="","",IF(Valores_especificados,A104+1,""))) -> 
A106: =IF(J105=0,"",IF(J105="","",IF(Valores_especificados,A105+1,""))) -> 
A107: =IF(J106=0,"",IF(J106="","",IF(Valores_especificados,A106+1,""))) -> 
A108: =IF(J107=0,"",IF(J107="","",IF(Valores_especificados,A107+1,""))) -> 
A109: =IF(J108=0,"",IF(J108="","",IF(Valores_especificados,A108+1,""))) -> 
A110: =IF(J109=0,"",IF(J109="","",IF(Valores_especificados,A109+1,""))) -> 
A111: =IF(J110=0,"",IF(J110="","",IF(Valores_especificados,A110+1,""))) -> 
A112: =IF(J111=0,"",IF(J111="","",IF(Valores_especificados,A111+1,""))) -> 
A113: =IF(J112=0,"",IF(J112="","",IF(Valores_especificados,A112+1,""))) -> 
A114: =IF(J113=0,"",IF(J113="","",IF(Valores_especificados,A113+1,""))) -> 
A115: =IF(J114=0,"",IF(J114="","",IF(Valores_especificados,A114+1,""))) -> 
A116: =IF(J115=0,"",IF(J115="","",IF(Valores_especificados,A115+1,""))) -> 
A117: =IF(J116=0,"",IF(J116="","",IF(Valores_especificados,A116+1,""))) -> 
A118: =IF(J117=0,"",IF(J117="","",IF(Valores_especificados,A117+1,""))) -> 
A119: =IF(J118=0,"",IF(J118="","",IF(Valores_especificados,A118+1,""))) -> 
A120: =IF(J119=0,"",IF(J119="","",IF(Valores_especificados,A119+1,""))) -> 
A121: =IF(J120=0,"",IF(J120="","",IF(Valores_especificados,A120+1,""))) -> 
A122: =IF(J121=0,"",IF(J121="","",IF(Valores_especificados,A121+1,""))) -> 
A123: =IF(J122=0,"",IF(J122="","",IF(Valores_especificados,A122+1,""))) -> 
A124: =IF(J123=0,"",IF(J123="","",IF(Valores_especificados,A123+1,""))) -> 
A125: =IF(J124=0,"",IF(J124="","",IF(Valores_especificados,A124+1,""))) -> 
A126: =IF(J125=0,"",IF(J125="","",IF(Valores_especificados,A125+1,""))) -> 
A127: =IF(J126=0,"",IF(J126="","",IF(Valores_especificados,A126+1,""))) -> 
A128: =IF(J127=0,"",IF(J127="","",IF(Valores_especificados,A127+1,""))) -> 
A129: =IF(J128=0,"",IF(J128="","",IF(Valores_especificados,A128+1,""))) -> 
A130: =IF(J129=0,"",IF(J129="","",IF(Valores_especificados,A129+1,""))) -> 
A131: =IF(J130=0,"",IF(J130="","",IF(Valores_especificados,A130+1,""))) -> 
A132: =IF(J131=0,"",IF(J131="","",IF(Valores_especificados,A131+1,""))) -> 
A133: =IF(J132=0,"",IF(J132="","",IF(Valores_especificados,A132+1,""))) -> 
A134: =IF(J133=0,"",IF(J133="","",IF(Valores_especificados,A133+1,""))) -> 
A135: =IF(J134=0,"",IF(J134="","",IF(Valores_especificados,A134+1,""))) -> 
A136: =IF(J135=0,"",IF(J135="","",IF(Valores_especificados,A135+1,""))) -> 
A137: =IF(J136=0,"",IF(J136="","",IF(Valores_especificados,A136+1,""))) -> 
A138: =IF(J137=0,"",IF(J137="","",IF(Valores_especificados,A137+1,""))) -> 
A139: =IF(J138=0,"",IF(J138="","",IF(Valores_especificados,A138+1,""))) -> 
A140: =IF(J139=0,"",IF(J139="","",IF(Valores_especificados,A139+1,""))) -> 
A141: =IF(J140=0,"",IF(J140="","",IF(Valores_especificados,A140+1,""))) -> 
A142: =IF(J141=0,"",IF(J141="","",IF(Valores_especificados,A141+1,""))) -> 
A143: =IF(J142=0,"",IF(J142="","",IF(Valores_especificados,A142+1,""))) -> 
A144: =IF(J143=0,"",IF(J143="","",IF(Valores_especificados,A143+1,""))) -> 
A145: =IF(J144=0,"",IF(J144="","",IF(Valores_especificados,A144+1,""))) -> 
A146: =IF(J145=0,"",IF(J145="","",IF(Valores_especificados,A145+1,""))) -> 
A147: =IF(J146=0,"",IF(J146="","",IF(Valores_especificados,A146+1,""))) -> 
A148: =IF(J147=0,"",IF(J147="","",IF(Valores_especificados,A147+1,""))) ->  | B148: =IF(AND(D148<>"",$N$3=$L$12),C148+D148,C148) ->  | C148: =IF($A$10=$L$9,IF(Núm_de_pago<>"",DATE(YEAR(Inicio_prestamo),MONTH(Inicio_prestamo)+(Núm_de_pago),DAY(Inicio_prestamo)),""),IF(Núm_de_pago<>"",DATE(YEAR(Inicio_prestamo),MONTH(Inicio_prestamo)+(Núm_de_pago)*12/Núm_pagos_al_año,DAY(Inicio_prestamo)),"")) ->  | D148: =IF(Núm_de_pago<>"",IF(WEEKDAY(C148)=1,1,""),"") ->  | G148: =IF(Núm_de_pago<>"",Pago_mensual_programado,"") ->  | J148: =IF(Núm_de_pago<>"",ROUND(Saldo_inicial-Capital,6),IF(Núm_de_pago<>"",0,"")) -> 
A149: =IF(J148=0,"",IF(J148="","",IF(Valores_especificados,A148+1,""))) ->  | F149: =IF(Núm_de_pago<>"",ROUND(J148,6),"") ->  | H149: =IF(A149="","",ROUND(IF(Núm_de_pago<>"",Pago_progr-Int,""),6)) ->  | I149: =IF(A149="","",ROUND(IF(Núm_de_pago<>"",Saldo_inicial*(Tasa_de_interés/$L$10),""),6)) -> 
A150: =IF(J149=0,"",IF(J149="","",IF(Valores_especificados,A149+1,""))) ->  | E150: =IF(A150="","",IF($N$5=$L$14,DAYS360(B149,B150,TRUE),_xlfn.DAYS(B150,B149))) ->  | K150: =IF(A150="","",SUM(OFFSET($H$20,,1,1+A149))) -> 
A151: =IF(J150=0,"",IF(J150="","",IF(Valores_especificados,A150+1,""))) -> 
A152: =IF(J151=0,"",IF(J151="","",IF(Valores_especificados,A151+1,""))) -> 
A153: =IF(J152=0,"",IF(J152="","",IF(Valores_especificados,A152+1,""))) -> 
A154: =IF(J153=0,"",IF(J153="","",IF(Valores_especificados,A153+1,""))) -> 
A155: =IF(J154=0,"",IF(J154="","",IF(Valores_especificados,A154+1,""))) -> 
A156: =IF(J155=0,"",IF(J155="","",IF(Valores_especificados,A155+1,""))) -> 
A157: =IF(J156=0,"",IF(J156="","",IF(Valores_especificados,A156+1,""))) -> 
A158: =IF(J157=0,"",IF(J157="","",IF(Valores_especificados,A157+1,""))) -> 
A159: =IF(J158=0,"",IF(J158="","",IF(Valores_especificados,A158+1,""))) -> 
A160: =IF(J159=0,"",IF(J159="","",IF(Valores_especificados,A159+1,""))) -> 
A161: =IF(J160=0,"",IF(J160="","",IF(Valores_especificados,A160+1,""))) -> 
A162: =IF(J161=0,"",IF(J161="","",IF(Valores_especificados,A161+1,""))) -> 
A163: =IF(J162=0,"",IF(J162="","",IF(Valores_especificados,A162+1,""))) -> 
A164: =IF(J163=0,"",IF(J163="","",IF(Valores_especificados,A163+1,""))) -> 
A165: =IF(J164=0,"",IF(J164="","",IF(Valores_especificados,A164+1,""))) -> 
A166: =IF(J165=0,"",IF(J165="","",IF(Valores_especificados,A165+1,""))) -> 
A167: =IF(J166=0,"",IF(J166="","",IF(Valores_especificados,A166+1,""))) -> 
A168: =IF(J167=0,"",IF(J167="","",IF(Valores_especificados,A167+1,""))) -> 
A169: =IF(J168=0,"",IF(J168="","",IF(Valores_especificados,A168+1,""))) -> 
A170: =IF(J169=0,"",IF(J169="","",IF(Valores_especificados,A169+1,""))) -> 
A171: =IF(J170=0,"",IF(J170="","",IF(Valores_especificados,A170+1,""))) -> 
A172: =IF(J171=0,"",IF(J171="","",IF(Valores_especificados,A171+1,""))) -> 
A173: =IF(J172=0,"",IF(J172="","",IF(Valores_especificados,A172+1,""))) -> 
A174: =IF(J173=0,"",IF(J173="","",IF(Valores_especificados,A173+1,""))) -> 
A175: =IF(J174=0,"",IF(J174="","",IF(Valores_especificados,A174+1,""))) -> 
A176: =IF(J175=0,"",IF(J175="","",IF(Valores_especificados,A175+1,""))) -> 
A177: =IF(J176=0,"",IF(J176="","",IF(Valores_especificados,A176+1,""))) -> 
A178: =IF(J177=0,"",IF(J177="","",IF(Valores_especificados,A177+1,""))) -> 
A179: =IF(J178=0,"",IF(J178="","",IF(Valores_especificados,A178+1,""))) -> 
A180: =IF(J179=0,"",IF(J179="","",IF(Valores_especificados,A179+1,""))) -> 
A181: =IF(J180=0,"",IF(J180="","",IF(Valores_especificados,A180+1,""))) -> 
A182: =IF(J181=0,"",IF(J181="","",IF(Valores_especificados,A181+1,""))) -> 
A183: =IF(J182=0,"",IF(J182="","",IF(Valores_especificados,A182+1,""))) -> 
A184: =IF(J183=0,"",IF(J183="","",IF(Valores_especificados,A183+1,""))) -> 
A185: =IF(J184=0,"",IF(J184="","",IF(Valores_especificados,A184+1,""))) -> 
A186: =IF(J185=0,"",IF(J185="","",IF(Valores_especificados,A185+1,""))) -> 
A187: =IF(J186=0,"",IF(J186="","",IF(Valores_especificados,A186+1,""))) -> 
A188: =IF(J187=0,"",IF(J187="","",IF(Valores_especificados,A187+1,""))) -> 
A189: =IF(J188=0,"",IF(J188="","",IF(Valores_especificados,A188+1,""))) -> 
A190: =IF(J189=0,"",IF(J189="","",IF(Valores_especificados,A189+1,""))) -> 
A191: =IF(J190=0,"",IF(J190="","",IF(Valores_especificados,A190+1,""))) -> 
A192: =IF(J191=0,"",IF(J191="","",IF(Valores_especificados,A191+1,""))) -> 
A193: =IF(J192=0,"",IF(J192="","",IF(Valores_especificados,A192+1,""))) -> 
A194: =IF(J193=0,"",IF(J193="","",IF(Valores_especificados,A193+1,""))) -> 
A195: =IF(J194=0,"",IF(J194="","",IF(Valores_especificados,A194+1,""))) -> 
A196: =IF(J195=0,"",IF(J195="","",IF(Valores_especificados,A195+1,""))) -> 
A197: =IF(J196=0,"",IF(J196="","",IF(Valores_especificados,A196+1,""))) -> 
A198: =IF(J197=0,"",IF(J197="","",IF(Valores_especificados,A197+1,""))) -> 
A199: =IF(J198=0,"",IF(J198="","",IF(Valores_especificados,A198+1,""))) -> 
A200: =IF(J199=0,"",IF(J199="","",IF(Valores_especificados,A199+1,""))) -> 
A201: =IF(J200=0,"",IF(J200="","",IF(Valores_especificados,A200+1,""))) -> 
A202: =IF(J201=0,"",IF(J201="","",IF(Valores_especificados,A201+1,""))) -> 
A203: =IF(J202=0,"",IF(J202="","",IF(Valores_especificados,A202+1,""))) -> 
A204: =IF(J203=0,"",IF(J203="","",IF(Valores_especificados,A203+1,""))) -> 
... 295 more rows

Sheet Cuotas Fijas de Capital
I1: paguilar | K1: =NOW() -> 2019-02-01T08:14:21.650
E2: **El Costo Anual Total(CAT) es para fines informativos y comparativos.
B3: PLAN DE PAGOS | G3: COOPERATIVA DE AHORRO Y CREDITO OCOTEPEQUE LTDA | N3: no | O3: Aplica Domingos
A5: Nombre: | I5: Código de afiliado: | N5: Dias 360 | O5: Calculo de Dias
A7: Especificaciones del prestamo | I7: Resumen del préstamo | N7: Plazo (En Años) | O7: Plazo del préstamo
A8: Importe del préstamo | E8: 100000 | G8: Clase de Interes | H8: Vencidos | J8: Capital efectivo | K8: =Importe_del_préstamo-K10-K11 -> 99570 | L8: Plazo (En Años)
A9: Tasa de interés anual | E9: 0.13 | G9: Liqudacion Mensual | H9: Mes Comercial | J9: Número de pagos programado | K9: =IF($A$10=$L$9,Años_préstamo,IF(Valores_especificados,Años_préstamo*Núm_pagos_al_año,"")) -> 4 | L9: Plazo (En Meses)
A10: =+N7 -> Plazo (En Años) | E10: 4 | G10: Frecuencia de Capital | H10: ANUAL | J10: Comisión de desembolso (CD) | K10: =+Importe_del_préstamo*E12 -> 0 | L10: =+Núm_pagos_al_año -> 1
A11: Número de pagos en el año | E11: 1 | G11: Frecuencia de Interes | H11: ANUAL | J11: Comisión de gestión (CG) | K11: =+E13 -> 430 | L11: si
A12: Comisión de desembolso (CD) | G12: Amortizacion | H12: Cuotas Fijas de Capital | J12: Interés total | K12: =IF(Valores_especificados,SUMIF(Saldo_inicial,">0",Int),"") -> 32500.8 | L12: no
A13: Comisión de gestión (CG) | E13: =+'Comision de Gestion'!C10 -> 430 | G13: Fecha inicial del préstamo | H13: =TODAY() -> 2019-02-01 | J13: Costo total mensual del crédito | K13: =IRR((OFFSET(F19,,1,(1+K9))),Tasa_de_interés) -> 0.132189822 | L13: Dias Calendario
F14: 12 | G14: Fecha Final del préstamo | H14: =LOOKUP(K9,A20:A499,B20:B499) -> 2023-02-01 | J14: T.A.E. (CAT) real | K14: =IF(Valores_especificados,((1+(K13))^(L10))-1,"") -> 0.132189822 | L14: Dias 360
F15: Pagos adicionales opcionales
A18: Nº Pago | B18: Fecha de pago | E18: Dias | F18: Saldo inicial | G18: Pago programado | H18: Abono Capital | I18: Interés | J18: Saldo final | K18: Interés acumulativo
G19: =-K8 -> -99570
A20: =IF(Valores_especificados,1,"") -> 1 | B20: =IF(AND(D20<>"",$N$3=$L$12),C20+D20,C20) -> 2020-02-01 | C20: =IF($A$10=$L$9,IF(Núm_de_pago<>"",DATE(YEAR(Inicio_prestamo),MONTH(Inicio_prestamo)+(Núm_de_pago),DAY(Inicio_prestamo)),""),IF(Núm_de_pago<>"",DATE(YEAR(Inicio_prestamo),MONTH(Inicio_prestamo)+(Núm_de_pago)*12/Núm_pagos_al_año,DAY(Inicio_prestamo)),"")) -> 2020-02-01 | D20: =IF(Núm_de_pago<>"",IF(WEEKDAY(C20)=1,1,""),"") ->  | E20: =IF($N$5=$L$14,DAYS360(Inicio_prestamo,B20,TRUE),_xlfn.DAYS(B20,Inicio_prestamo)) -> 360 | F20: =IF(Valores_especificados,Importe_del_préstamo,"") -> 100000 | G20: =IF(Núm_de_pago<>"",ROUND(Capital+Int,3),"") -> 37999.6 | H20: =IF($A$10=$L$9,IF(Núm_de_pago<>"",ROUND(Importe_del_préstamo/(Años_préstamo),6),""),IF(Núm_de_pago<>"",ROUND(Importe_del_préstamo/(Años_préstamo*Núm_pagos_al_año),6),"")) -> 25000 | I20: =IF($N$5=$L$14,IF(Núm_de_pago<>"",ROUND((Saldo_inicial*(Tasa_de_interés/360)),2)*E20,""),IF(Núm_de_pago<>"",ROUND((Saldo_inicial*(Tasa_de_interés/365)),2)*E20,"")) -> 12999.6 | J20: =IF(Núm_de_pago<>"",ROUND(Saldo_inicial-Capital,6),IF(Núm_de_pago<>"",0,"")) -> 75000 | K20: =SUM($I$20:$I20) -> 12999.6
A21: =IF(J20=0,"",IF(J20="","",IF(Valores_especificados,A20+1,""))) -> 2 | B21: =IF(AND(D21<>"",$N$3=$L$12),C21+D21,C21) -> 2021-02-01 | C21: 2021-02-01 | E21: =IF(J20=0,"",IF(J20="","",IF($N$5=$L$14,DAYS360(B20,B21,TRUE),_xlfn.DAYS(B21,B20)))) -> 360 | F21: =IF(Núm_de_pago<>"",ROUND(J20,6),"") -> 75000 | G21: 34748.8 | H21: 25000 | I21: 9748.8 | J21: 50000 | K21: =IF(A21="","",SUM(OFFSET($H$20,,1,1+A20))) -> 22748.4
A22: =IF(J21=0,"",IF(J21="","",IF(Valores_especificados,A21+1,""))) -> 3 | B22: 2022-02-01 | C22: 2022-02-01 | E22: =IF(J21=0,"",IF(J21="","",IF($N$5=$L$14,DAYS360(B21,B22,TRUE),_xlfn.DAYS(B22,B21)))) -> 360 | F22: 50000 | G22: 31501.6 | H22: 25000 | I22: 6501.6 | J22: 25000 | K22: =IF(A22="","",SUM(OFFSET($H$20,,1,1+A21))) -> 29250
A23: =IF(J22=0,"",IF(J22="","",IF(Valores_especificados,A22+1,""))) -> 4 | B23: 2023-02-01 | C23: 2023-02-01 | E23: 360 | F23: 25000 | G23: 28250.8 | H23: 25000 | I23: 3250.8 | J23: 0 | K23: 32500.8
A24: =IF(J23=0,"",IF(J23="","",IF(Valores_especificados,A23+1,""))) -> 
A25: =IF(J24=0,"",IF(J24="","",IF(Valores_especificados,A24+1,""))) -> 
A26: =IF(J25=0,"",IF(J25="","",IF(Valores_especificados,A25+1,""))) -> 
A27: =IF(J26=0,"",IF(J26="","",IF(Valores_especificados,A26+1,""))) -> 
A28: =IF(J27=0,"",IF(J27="","",IF(Valores_especificados,A27+1,""))) -> 
A29: =IF(J28=0,"",IF(J28="","",IF(Valores_especificados,A28+1,""))) -> 
A30: =IF(J29=0,"",IF(J29="","",IF(Valores_especificados,A29+1,""))) -> 
A31: =IF(J30=0,"",IF(J30="","",IF(Valores_especificados,A30+1,""))) -> 
A32: =IF(J31=0,"",IF(J31="","",IF(Valores_especificados,A31+1,""))) -> 
A33: =IF(J32=0,"",IF(J32="","",IF(Valores_especificados,A32+1,""))) -> 
A34: =IF(J33=0,"",IF(J33="","",IF(Valores_especificados,A33+1,""))) -> 
A35: =IF(J34=0,"",IF(J34="","",IF(Valores_especificados,A34+1,""))) -> 
A36: =IF(J35=0,"",IF(J35="","",IF(Valores_especificados,A35+1,""))) -> 
A37: =IF(J36=0,"",IF(J36="","",IF(Valores_especificados,A36+1,""))) -> 
A38: =IF(J37=0,"",IF(J37="","",IF(Valores_especificados,A37+1,""))) -> 
A39: =IF(J38=0,"",IF(J38="","",IF(Valores_especificados,A38+1,""))) -> 
A40: =IF(J39=0,"",IF(J39="","",IF(Valores_especificados,A39+1,""))) -> 
A41: =IF(J40=0,"",IF(J40="","",IF(Valores_especificados,A40+1,""))) -> 
A42: =IF(J41=0,"",IF(J41="","",IF(Valores_especificados,A41+1,""))) -> 
A43: =IF(J42=0,"",IF(J42="","",IF(Valores_especificados,A42+1,""))) -> 
A44: =IF(J43=0,"",IF(J43="","",IF(Valores_especificados,A43+1,""))) -> 
A45: =IF(J44=0,"",IF(J44="","",IF(Valores_especificados,A44+1,""))) -> 
A46: =IF(J45=0,"",IF(J45="","",IF(Valores_especificados,A45+1,""))) -> 
A47: =IF(J46=0,"",IF(J46="","",IF(Valores_especificados,A46+1,""))) -> 
A48: =IF(J47=0,"",IF(J47="","",IF(Valores_especificados,A47+1,""))) -> 
A49: =IF(J48=0,"",IF(J48="","",IF(Valores_especificados,A48+1,""))) -> 
A50: =IF(J49=0,"",IF(J49="","",IF(Valores_especificados,A49+1,""))) -> 
A51: =IF(J50=0,"",IF(J50="","",IF(Valores_especificados,A50+1,""))) -> 
A52: =IF(J51=0,"",IF(J51="","",IF(Valores_especificados,A51+1,""))) -> 
A53: =IF(J52=0,"",IF(J52="","",IF(Valores_especificados,A52+1,""))) -> 
A54: =IF(J53=0,"",IF(J53="","",IF(Valores_especificados,A53+1,""))) -> 
A55: =IF(J54=0,"",IF(J54="","",IF(Valores_especificados,A54+1,""))) -> 
A56: =IF(J55=0,"",IF(J55="","",IF(Valores_especificados,A55+1,""))) -> 
A57: =IF(J56=0,"",IF(J56="","",IF(Valores_especificados,A56+1,""))) -> 
A58: =IF(J57=0,"",IF(J57="","",IF(Valores_especificados,A57+1,""))) -> 
A59: =IF(J58=0,"",IF(J58="","",IF(Valores_especificados,A58+1,""))) -> 
A60: =IF(J59=0,"",IF(J59="","",IF(Valores_especificados,A59+1,""))) -> 
A61: =IF(J60=0,"",IF(J60="","",IF(Valores_especificados,A60+1,""))) -> 
A62: =IF(J61=0,"",IF(J61="","",IF(Valores_especificados,A61+1,""))) -> 
A63: =IF(J62=0,"",IF(J62="","",IF(Valores_especificados,A62+1,""))) -> 
A64: =IF(J63=0,"",IF(J63="","",IF(Valores_especificados,A63+1,""))) -> 
A65: =IF(J64=0,"",IF(J64="","",IF(Valores_especificados,A64+1,""))) -> 
A66: =IF(J65=0,"",IF(J65="","",IF(Valores_especificados,A65+1,""))) -> 
A67: =IF(J66=0,"",IF(J66="","",IF(Valores_especificados,A66+1,""))) -> 
A68: =IF(J67=0,"",IF(J67="","",IF(Valores_especificados,A67+1,""))) -> 
A69: =IF(J68=0,"",IF(J68="","",IF(Valores_especificados,A68+1,""))) -> 
A70: =IF(J69=0,"",IF(J69="","",IF(Valores_especificados,A69+1,""))) -> 
A71: =IF(J70=0,"",IF(J70="","",IF(Valores_especificados,A70+1,""))) -> 
A72: =IF(J71=0,"",IF(J71="","",IF(Valores_especificados,A71+1,""))) -> 
A73: =IF(J72=0,"",IF(J72="","",IF(Valores_especificados,A72+1,""))) -> 
A74: =IF(J73=0,"",IF(J73="","",IF(Valores_especificados,A73+1,""))) -> 
A75: =IF(J74=0,"",IF(J74="","",IF(Valores_especificados,A74+1,""))) -> 
A76: =IF(J75=0,"",IF(J75="","",IF(Valores_especificados,A75+1,""))) -> 
A77: =IF(J76=0,"",IF(J76="","",IF(Valores_especificados,A76+1,""))) -> 
A78: =IF(J77=0,"",IF(J77="","",IF(Valores_especificados,A77+1,""))) -> 
A79: =IF(J78=0,"",IF(J78="","",IF(Valores_especificados,A78+1,""))) -> 
A80: =IF(J79=0,"",IF(J79="","",IF(Valores_especificados,A79+1,""))) -> 
A81: =IF(J80=0,"",IF(J80="","",IF(Valores_especificados,A80+1,""))) -> 
A82: =IF(J81=0,"",IF(J81="","",IF(Valores_especificados,A81+1,""))) -> 
A83: =IF(J82=0,"",IF(J82="","",IF(Valores_especificados,A82+1,""))) -> 
A84: =IF(J83=0,"",IF(J83="","",IF(Valores_especificados,A83+1,""))) ->  | C84: =IF($A$10=$L$9,IF(Núm_de_pago<>"",DATE(YEAR(Inicio_prestamo),MONTH(Inicio_prestamo)+(Núm_de_pago),DAY(Inicio_prestamo)),""),IF(Núm_de_pago<>"",DATE(YEAR(Inicio_prestamo),MONTH(Inicio_prestamo)+(Núm_de_pago)*12/Núm_pagos_al_año,DAY(Inicio_prestamo)),"")) ->  | D84: =IF(Núm_de_pago<>"",IF(WEEKDAY(C84)=1,1,""),"") ->  | G84: =IF(Núm_de_pago<>"",ROUND(Capital+Int,3),"") ->  | H84: =IF($A$10=$L$9,IF(Núm_de_pago<>"",ROUND(Importe_del_préstamo/(Años_préstamo),6),""),IF(Núm_de_pago<>"",ROUND(Importe_del_préstamo/(Años_préstamo*Núm_pagos_al_año),6),"")) ->  | I84: =IF($N$5=$L$14,IF(Núm_de_pago<>"",ROUND((Saldo_inicial*(Tasa_de_interés/360)),2)*E84,""),IF(Núm_de_pago<>"",ROUND((Saldo_inicial*(Tasa_de_interés/365)),2)*E84,"")) ->  | J84: =IF(Núm_de_pago<>"",ROUND(Saldo_inicial-Capital,6),IF(Núm_de_pago<>"",0,"")) -> 
A85: =IF(J84=0,"",IF(J84="","",IF(Valores_especificados,A84+1,""))) ->  | B85: =IF(AND(D85<>"",$N$3=$L$12),C85+D85,C85) ->  | F85: =IF(Núm_de_pago<>"",ROUND(J84,6),"") -> 
A86: =IF(J85=0,"",IF(J85="","",IF(Valores_especificados,A85+1,""))) ->  | E86: =IF(J85=0,"",IF(J85="","",IF($N$5=$L$14,DAYS360(B85,B86,TRUE),_xlfn.DAYS(B86,B85)))) ->  | K86: =IF(A86="","",SUM(OFFSET($H$20,,1,1+A85))) -> 
A87: =IF(J86=0,"",IF(J86="","",IF(Valores_especificados,A86+1,""))) -> 
A88: =IF(J87=0,"",IF(J87="","",IF(Valores_especificados,A87+1,""))) -> 
A89: =IF(J88=0,"",IF(J88="","",IF(Valores_especificados,A88+1,""))) -> 
A90: =IF(J89=0,"",IF(J89="","",IF(Valores_especificados,A89+1,""))) -> 
A91: =IF(J90=0,"",IF(J90="","",IF(Valores_especificados,A90+1,""))) -> 
A92: =IF(J91=0,"",IF(J91="","",IF(Valores_especificados,A91+1,""))) -> 
A93: =IF(J92=0,"",IF(J92="","",IF(Valores_especificados,A92+1,""))) -> 
A94: =IF(J93=0,"",IF(J93="","",IF(Valores_especificados,A93+1,""))) -> 
A95: =IF(J94=0,"",IF(J94="","",IF(Valores_especificados,A94+1,""))) -> 
A96: =IF(J95=0,"",IF(J95="","",IF(Valores_especificados,A95+1,""))) -> 
A97: =IF(J96=0,"",IF(J96="","",IF(Valores_especificados,A96+1,""))) -> 
A98: =IF(J97=0,"",IF(J97="","",IF(Valores_especificados,A97+1,""))) -> 
A99: =IF(J98=0,"",IF(J98="","",IF(Valores_especificados,A98+1,""))) -> 
A100: =IF(J99=0,"",IF(J99="","",IF(Valores_especificados,A99+1,""))) -> 
A101: =IF(J100=0,"",IF(J100="","",IF(Valores_especificados,A100+1,""))) -> 
A102: =IF(J101=0,"",IF(J101="","",IF(Valores_especificados,A101+1,""))) -> 
A103: =IF(J102=0,"",IF(J102="","",IF(Valores_especificados,A102+1,""))) -> 
A104: =IF(J103=0,"",IF(J103="","",IF(Valores_especificados,A103+1,""))) -> 
A105: =IF(J104=0,"",IF(J104="","",IF(Valores_especificados,A104+1,""))) -> 
A106: =IF(J105=0,"",IF(J105="","",IF(Valores_especificados,A105+1,""))) -> 
A107: =IF(J106=0,"",IF(J106="","",IF(Valores_especificados,A106+1,""))) -> 
A108: =IF(J107=0,"",IF(J107="","",IF(Valores_especificados,A107+1,""))) -> 
A109: =IF(J108=0,"",IF(J108="","",IF(Valores_especificados,A108+1,""))) -> 
A110: =IF(J109=0,"",IF(J109="","",IF(Valores_especificados,A109+1,""))) -> 
A111: =IF(J110=0,"",IF(J110="","",IF(Valores_especificados,A110+1,""))) -> 
A112: =IF(J111=0,"",IF(J111="","",IF(Valores_especificados,A111+1,""))) -> 
A113: =IF(J112=0,"",IF(J112="","",IF(Valores_especificados,A112+1,""))) -> 
A114: =IF(J113=0,"",IF(J113="","",IF(Valores_especificados,A113+1,""))) -> 
A115: =IF(J114=0,"",IF(J114="","",IF(Valores_especificados,A114+1,""))) -> 
A116: =IF(J115=0,"",IF(J115="","",IF(Valores_especificados,A115+1,""))) -> 
A117: =IF(J116=0,"",IF(J116="","",IF(Valores_especificados,A116+1,""))) -> 
A118: =IF(J117=0,"",IF(J117="","",IF(Valores_especificados,A117+1,""))) -> 
A119: =IF(J118=0,"",IF(J118="","",IF(Valores_especificados,A118+1,""))) -> 
A120: =IF(J119=0,"",IF(J119="","",IF(Valores_especificados,A119+1,""))) -> 
A121: =IF(J120=0,"",IF(J120="","",IF(Valores_especificados,A120+1,""))) -> 
A122: =IF(J121=0,"",IF(J121="","",IF(Valores_especificados,A121+1,""))) -> 
A123: =IF(J122=0,"",IF(J122="","",IF(Valores_especificados,A122+1,""))) -> 
A124: =IF(J123=0,"",IF(J123="","",IF(Valores_especificados,A123+1,""))) -> 
A125: =IF(J124=0,"",IF(J124="","",IF(Valores_especificados,A124+1,""))) -> 
A126: =IF(J125=0,"",IF(J125="","",IF(Valores_especificados,A125+1,""))) -> 
A127: =IF(J126=0,"",IF(J126="","",IF(Valores_especificados,A126+1,""))) -> 
A128: =IF(J127=0,"",IF(J127="","",IF(Valores_especificados,A127+1,""))) -> 
A129: =IF(J128=0,"",IF(J128="","",IF(Valores_especificados,A128+1,""))) -> 
A130: =IF(J129=0,"",IF(J129="","",IF(Valores_especificados,A129+1,""))) -> 
A131: =IF(J130=0,"",IF(J130="","",IF(Valores_especificados,A130+1,""))) -> 
A132: =IF(J131=0,"",IF(J131="","",IF(Valores_especificados,A131+1,""))) -> 
A133: =IF(J132=0,"",IF(J132="","",IF(Valores_especificados,A132+1,""))) -> 
A134: =IF(J133=0,"",IF(J133="","",IF(Valores_especificados,A133+1,""))) -> 
A135: =IF(J134=0,"",IF(J134="","",IF(Valores_especificados,A134+1,""))) -> 
A136: =IF(J135=0,"",IF(J135="","",IF(Valores_especificados,A135+1,""))) -> 
A137: =IF(J136=0,"",IF(J136="","",IF(Valores_especificados,A136+1,""))) -> 
A138: =IF(J137=0,"",IF(J137="","",IF(Valores_especificados,A137+1,""))) -> 
A139: =IF(J138=0,"",IF(J138="","",IF(Valores_especificados,A138+1,""))) -> 
A140: =IF(J139=0,"",IF(J139="","",IF(Valores_especificados,A139+1,""))) -> 
A141: =IF(J140=0,"",IF(J140="","",IF(Valores_especificados,A140+1,""))) -> 
A142: =IF(J141=0,"",IF(J141="","",IF(Valores_especificados,A141+1,""))) -> 
A143: =IF(J142=0,"",IF(J142="","",IF(Valores_especificados,A142+1,""))) -> 
A144: =IF(J143=0,"",IF(J143="","",IF(Valores_especificados,A143+1,""))) -> 
A145: =IF(J144=0,"",IF(J144="","",IF(Valores_especificados,A144+1,""))) -> 
A146: =IF(J145=0,"",IF(J145="","",IF(Valores_especificados,A145+1,""))) -> 
A147: =IF(J146=0,"",IF(J146="","",IF(Valores_especificados,A146+1,""))) -> 
A148: =IF(J147=0,"",IF(J147="","",IF(Valores_especificados,A147+1,""))) ->  | C148: =IF($A$10=$L$9,IF(Núm_de_pago<>"",DATE(YEAR(Inicio_prestamo),MONTH(Inicio_prestamo)+(Núm_de_pago),DAY(Inicio_prestamo)),""),IF(Núm_de_pago<>"",DATE(YEAR(Inicio_prestamo),MONTH(Inicio_prestamo)+(Núm_de_pago)*12/Núm_pagos_al_año,DAY(Inicio_prestamo)),"")) ->  | D148: =IF(Núm_de_pago<>"",IF(WEEKDAY(C148)=1,1,""),"") ->  | G148: =IF(Núm_de_pago<>"",ROUND(Capital+Int,3),"") ->  | H148: =IF($A$10=$L$9,IF(Núm_de_pago<>"",ROUND(Importe_del_préstamo/(Años_préstamo),6),""),IF(Núm_de_pago<>"",ROUND(Importe_del_préstamo/(Años_préstamo*Núm_pagos_al_año),6),"")) ->  | I148: =IF($N$5=$L$14,IF(Núm_de_pago<>"",ROUND((Saldo_inicial*(Tasa_de_interés/360)),2)*E148,""),IF(Núm_de_pago<>"",ROUND((Saldo_inicial*(Tasa_de_interés/365)),2)*E148,"")) ->  | J148: =IF(Núm_de_pago<>"",ROUND(Saldo_inicial-Capital,6),IF(Núm_de_pago<>"",0,"")) -> 
A149: =IF(J148=0,"",IF(J148="","",IF(Valores_especificados,A148+1,""))) ->  | B149: =IF(AND(D149<>"",$N$3=$L$12),C149+D149,C149) ->  | F149: =IF(Núm_de_pago<>"",ROUND(J148,6),"") -> 
A150: =IF(J149=0,"",IF(J149="","",IF(Valores_especificados,A149+1,""))) ->  | E150: =IF(J149=0,"",IF(J149="","",IF($N$5=$L$14,DAYS360(B149,B150,TRUE),_xlfn.DAYS(B150,B149)))) ->  | K150: =IF(A150="","",SUM(OFFSET($H$20,,1,1+A149))) -> 
A151: =IF(J150=0,"",IF(J150="","",IF(Valores_especificados,A150+1,""))) -> 
A152: =IF(J151=0,"",IF(J151="","",IF(Valores_especificados,A151+1,""))) -> 
A153: =IF(J152=0,"",IF(J152="","",IF(Valores_especificados,A152+1,""))) -> 
A154: =IF(J153=0,"",IF(J153="","",IF(Valores_especificados,A153+1,""))) -> 
A155: =IF(J154=0,"",IF(J154="","",IF(Valores_especificados,A154+1,""))) -> 
A156: =IF(J155=0,"",IF(J155="","",IF(Valores_especificados,A155+1,""))) -> 
A157: =IF(J156=0,"",IF(J156="","",IF(Valores_especificados,A156+1,""))) -> 
A158: =IF(J157=0,"",IF(J157="","",IF(Valores_especificados,A157+1,""))) -> 
A159: =IF(J158=0,"",IF(J158="","",IF(Valores_especificados,A158+1,""))) -> 
A160: =IF(J159=0,"",IF(J159="","",IF(Valores_especificados,A159+1,""))) -> 
A161: =IF(J160=0,"",IF(J160="","",IF(Valores_especificados,A160+1,""))) -> 
A162: =IF(J161=0,"",IF(J161="","",IF(Valores_especificados,A161+1,""))) -> 
A163: =IF(J162=0,"",IF(J162="","",IF(Valores_especificados,A162+1,""))) -> 
A164: =IF(J163=0,"",IF(J163="","",IF(Valores_especificados,A163+1,""))) -> 
A165: =IF(J164=0,"",IF(J164="","",IF(Valores_especificados,A164+1,""))) -> 
A166: =IF(J165=0,"",IF(J165="","",IF(Valores_especificados,A165+1,""))) -> 
A167: =IF(J166=0,"",IF(J166="","",IF(Valores_especificados,A166+1,""))) -> 
A168: =IF(J167=0,"",IF(J167="","",IF(Valores_especificados,A167+1,""))) -> 
A169: =IF(J168=0,"",IF(J168="","",IF(Valores_especificados,A168+1,""))) -> 
A170: =IF(J169=0,"",IF(J169="","",IF(Valores_especificados,A169+1,""))) -> 
A171: =IF(J170=0,"",IF(J170="","",IF(Valores_especificados,A170+1,""))) -> 
A172: =IF(J171=0,"",IF(J171="","",IF(Valores_especificados,A171+1,""))) -> 
A173: =IF(J172=0,"",IF(J172="","",IF(Valores_especificados,A172+1,""))) -> 
A174: =IF(J173=0,"",IF(J173="","",IF(Valores_especificados,A173+1,""))) -> 
A175: =IF(J174=0,"",IF(J174="","",IF(Valores_especificados,A174+1,""))) -> 
A176: =IF(J175=0,"",IF(J175="","",IF(Valores_especificados,A175+1,""))) -> 
A177: =IF(J176=0,"",IF(J176="","",IF(Valores_especificados,A176+1,""))) -> 
A178: =IF(J177=0,"",IF(J177="","",IF(Valores_especificados,A177+1,""))) -> 
A179: =IF(J178=0,"",IF(J178="","",IF(Valores_especificados,A178+1,""))) -> 
A180: =IF(J179=0,"",IF(J179="","",IF(Valores_especificados,A179+1,""))) -> 
A181: =IF(J180=0,"",IF(J180="","",IF(Valores_especificados,A180+1,""))) -> 
A182: =IF(J181=0,"",IF(J181="","",IF(Valores_especificados,A181+1,""))) -> 
A183: =IF(J182=0,"",IF(J182="","",IF(Valores_especificados,A182+1,""))) -> 
A184: =IF(J183=0,"",IF(J183="","",IF(Valores_especificados,A183+1,""))) -> 
A185: =IF(J184=0,"",IF(J184="","",IF(Valores_especificados,A184+1,""))) -> 
A186: =IF(J185=0,"",IF(J185="","",IF(Valores_especificados,A185+1,""))) -> 
A187: =IF(J186=0,"",IF(J186="","",IF(Valores_especificados,A186+1,""))) -> 
A188: =IF(J187=0,"",IF(J187="","",IF(Valores_especificados,A187+1,""))) -> 
A189: =IF(J188=0,"",IF(J188="","",IF(Valores_especificados,A188+1,""))) -> 
A190: =IF(J189=0,"",IF(J189="","",IF(Valores_especificados,A189+1,""))) -> 
A191: =IF(J190=0,"",IF(J190="","",IF(Valores_especificados,A190+1,""))) -> 
A192: =IF(J191=0,"",IF(J191="","",IF(Valores_especificados,A191+1,""))) -> 
A193: =IF(J192=0,"",IF(J192="","",IF(Valores_especificados,A192+1,""))) -> 
A194: =IF(J193=0,"",IF(J193="","",IF(Valores_especificados,A193+1,""))) -> 
A195: =IF(J194=0,"",IF(J194="","",IF(Valores_especificados,A194+1,""))) -> 
A196: =IF(J195=0,"",IF(J195="","",IF(Valores_especificados,A195+1,""))) -> 
A197: =IF(J196=0,"",IF(J196="","",IF(Valores_especificados,A196+1,""))) -> 
A198: =IF(J197=0,"",IF(J197="","",IF(Valores_especificados,A197+1,""))) -> 
A199: =IF(J198=0,"",IF(J198="","",IF(Valores_especificados,A198+1,""))) -> 
A200: =IF(J199=0,"",IF(J199="","",IF(Valores_especificados,A199+1,""))) -> 
A201: =IF(J200=0,"",IF(J200="","",IF(Valores_especificados,A200+1,""))) -> 
A202: =IF(J201=0,"",IF(J201="","",IF(Valores_especificados,A201+1,""))) -> 
A203: =IF(J202=0,"",IF(J202="","",IF(Valores_especificados,A202+1,""))) -> 
A204: =IF(J203=0,"",IF(J203="","",IF(Valores_especificados,A203+1,""))) -> 
... 295 more rows

Sheet Comision de Gestion
B1: Comisión de gestión (CG)
B3: Desccripcion | C3: Monto
B4: Timbres | C4: 80
B5: Central de riesgo | C5: 50
B6: Gastos por liquidacion | C6: 300
B7: seguro deuda
B10: TOTAL | C10: =SUM(C4:C9) -> 430
